[Event "Titled Tuesday Blitz November 01 Late 2022"]
[White "Marcolino, Daniel Mattos"]
[Black "Kekic, Armin"]
[WhiteFideId "2106841"]
[BlackFideId "14401274"]
[WhiteElo "2074"]
[BlackElo "2132"]
[Result "0-1"]
[Round "04"]
[TimeControl "180+1"]
[Date "2022.11.02"]
[WhiteClock "0:00:02"]
[BlackClock "0:00:25"]

1. d4 {[%clk 0:03:00]}  d6 {[%clk 0:02:59]} 2. Nf3 {[%clk 0:03:00]}  Nc6 {[%clk 0:02:59]} 3. g3 {[%clk 0:03:00]}  e5 {[%clk 0:02:58]} 4. dxe5 {[%clk 0:03:00]}  Nxe5 {[%clk 0:02:59]} 5. Nxe5 {[%clk 0:03:00]}  dxe5 {[%clk 0:03:00]} 6. Qxd8+ {[%clk 0:03:00]}  Kxd8 {[%clk 0:03:01]} 7. Bg2 {[%clk 0:03:01]}  c6 {[%clk 0:02:58]} 8. O-O {[%clk 0:02:57]}  Be6 {[%clk 0:02:58]} 9. b3 {[%clk 0:02:50]}  Kc7 {[%clk 0:02:56]} 10. Bb2 {[%clk 0:02:50]}  f6 {[%clk 0:02:56]} 11. c4 {[%clk 0:02:49]}  a5 {[%clk 0:02:55]} 12. Nc3 {[%clk 0:02:49]}  Bb4 {[%clk 0:02:52]} 13. Rfd1 {[%clk 0:02:43]}  Nh6 {[%clk 0:02:52]} 14. e3 {[%clk 0:02:25]}  Rhd8 {[%clk 0:02:42]} 15. Kf1 {[%clk 0:02:17]}  Bg4 {[%clk 0:02:41]} 16. Rxd8 {[%clk 0:02:15]}  Rxd8 {[%clk 0:02:40]} 17. h3 {[%clk 0:02:12]}  Bf5 {[%clk 0:02:40]} 18. e4 {[%clk 0:01:50]}  Be6 {[%clk 0:02:34]} 19. Ke2 {[%clk 0:01:50]}  Nf7 {[%clk 0:02:32]} 20. Rd1 {[%clk 0:01:44]}  Nd6 {[%clk 0:02:12]} 21. a3 {[%clk 0:01:23]}  Bc5 {[%clk 0:01:51]} 22. Na4 {[%clk 0:01:15]}  Ba7 {[%clk 0:01:49]} 23. Bc3 {[%clk 0:01:00]}  b6 {[%clk 0:01:39]} 24. c5 {[%clk 0:00:25]}  Nc8 {[%clk 0:01:26]} 25. Rxd8 {[%clk 0:00:25]}  Kxd8 {[%clk 0:01:27]} 26. cxb6 {[%clk 0:00:24]}  Nxb6 {[%clk 0:01:01]} 27. Bxa5 {[%clk 0:00:23]}  Kc7 {[%clk 0:01:01]} 28. Nxb6 {[%clk 0:00:21]}  Bxb6 {[%clk 0:01:02]} 29. Bxb6+ {[%clk 0:00:21]}  Kxb6 {[%clk 0:01:03]} 30. b4 {[%clk 0:00:16]}  Kb5 {[%clk 0:01:03]} 31. Kd3 {[%clk 0:00:16]}  Ka4 {[%clk 0:01:03]} 32. Kc3 {[%clk 0:00:16]}  Kxa3 {[%clk 0:01:03]} 33. f4 {[%clk 0:00:17]}  Ka2 {[%clk 0:00:58]} 34. Bf1 {[%clk 0:00:14]}  Kb1 {[%clk 0:00:56]} 35. f5 {[%clk 0:00:13]}  Bc8 {[%clk 0:00:51]} 36. g4 {[%clk 0:00:12]}  Kc1 {[%clk 0:00:51]} 37. h4 {[%clk 0:00:12]}  Kd1 {[%clk 0:00:50]} 38. g5 {[%clk 0:00:11]}  Ke1 {[%clk 0:00:48]} 39. Bc4 {[%clk 0:00:10]}  Kf2 {[%clk 0:00:48]} 40. gxf6 {[%clk 0:00:09]}  gxf6 {[%clk 0:00:47]} 41. Bf7 {[%clk 0:00:07]}  Ke3 {[%clk 0:00:44]} 42. Be8 {[%clk 0:00:07]}  Kxe4 {[%clk 0:00:43]} 43. Bxc6+ {[%clk 0:00:05]}  Kxf5 {[%clk 0:00:43]} 44. b5 {[%clk 0:00:05]}  Kg4 {[%clk 0:00:40]} 45. b6 {[%clk 0:00:03]}  Kxh4 {[%clk 0:00:40]} 46. b7 {[%clk 0:00:04]}  Bxb7 {[%clk 0:00:39]} 47. Bxb7 {[%clk 0:00:05]}  Kg3 {[%clk 0:00:39]} 48. Kd3 {[%clk 0:00:05]}  f5 {[%clk 0:00:38]} 49. Ke3 {[%clk 0:00:05]}  h5 {[%clk 0:00:36]} 50. Bc8 {[%clk 0:00:01]}  Kg4 {[%clk 0:00:35]} 51. Bd7 {[%clk 0:00:01]}  h4 {[%clk 0:00:35]} 52. Kf2 {[%clk 0:00:01]}  Kf4 {[%clk 0:00:34]} 53. Bc8 {[%clk 0:00:01]}  e4 {[%clk 0:00:33]} 54. Bd7 {[%clk 0:00:01]}  Ke5 {[%clk 0:00:33]} 55. Ke3 {[%clk 0:00:02]}  f4+ {[%clk 0:00:33]} 56. Kf2 {[%clk 0:00:02]}  Kd4 {[%clk 0:00:27]} 57. Bc8 {[%clk 0:00:01]}  Kd3 {[%clk 0:00:26]} 58. Ba6+ {[%clk 0:00:01]}  Kd2 {[%clk 0:00:26]} 59. Bb7 {[%clk 0:00:02]}  e3+ {[%clk 0:00:25]} 60. Kf3 {[%clk 0:00:02]}  e2 {[%clk 0:00:25]} 0-1


[Site "https://www.chess.com"]

[Event "Titled Tuesday Blitz November 01 Late 2022"]
[White "Melikyan, Gnel"]
[Black "Mickiewicz, Piotr"]
[WhiteFideId "54109990"]
[BlackFideId "1114891"]
[WhiteElo "2138"]
[BlackElo "2246"]
[Result "1-0"]
[Round "04"]
[TimeControl "180+1"]
[Date "2022.11.02"]
[WhiteClock "0:01:24"]
[BlackClock "0:00:11"]

1. e4 {[%clk 0:02:59]}  c6 {[%clk 0:02:58]} 2. Nc3 {[%clk 0:02:58]}  d5 {[%clk 0:02:59]} 3. Nf3 {[%clk 0:02:59]}  Nf6 {[%clk 0:02:58]} 4. Qe2 {[%clk 0:02:57]}  Nxe4 {[%clk 0:02:53]} 5. Nxe4 {[%clk 0:02:56]}  dxe4 {[%clk 0:02:54]} 6. Qxe4 {[%clk 0:02:57]}  Qd5 {[%clk 0:02:49]} 7. Qxd5 {[%clk 0:02:53]}  cxd5 {[%clk 0:02:48]} 8. d4 {[%clk 0:02:54]}  Nc6 {[%clk 0:02:47]} 9. c3 {[%clk 0:02:54]}  Bg4 {[%clk 0:02:45]} 10. Be2 {[%clk 0:02:50]}  e6 {[%clk 0:02:45]} 11. h3 {[%clk 0:02:50]}  Bh5 {[%clk 0:02:44]} 12. O-O {[%clk 0:02:49]}  Bd6 {[%clk 0:02:41]} 13. Re1 {[%clk 0:02:49]}  O-O {[%clk 0:02:36]} 14. g4 {[%clk 0:02:47]}  Bg6 {[%clk 0:02:34]} 15. Nh4 {[%clk 0:02:48]}  Bc2 {[%clk 0:02:30]} 16. Be3 {[%clk 0:02:47]}  h6 {[%clk 0:02:28]} 17. f4 {[%clk 0:02:45]}  Be4 {[%clk 0:02:23]} 18. Nf3 {[%clk 0:02:31]}  f6 {[%clk 0:02:13]} 19. Rad1 {[%clk 0:02:29]}  g5 {[%clk 0:02:04]} 20. fxg5 {[%clk 0:02:22]}  fxg5 {[%clk 0:01:47]} 21. Rf1 {[%clk 0:02:20]}  Bf4 {[%clk 0:01:40]} 22. Bxf4 {[%clk 0:02:08]}  Rxf4 {[%clk 0:01:41]} 23. Nd2 {[%clk 0:02:08]}  Raf8 {[%clk 0:01:35]} 24. Nxe4 {[%clk 0:02:04]}  Rxe4 {[%clk 0:01:35]} 25. Rxf8+ {[%clk 0:02:04]}  Kxf8 {[%clk 0:01:36]} 26. Bf3 {[%clk 0:01:57]}  Rf4 {[%clk 0:01:34]} 27. Kg2 {[%clk 0:01:56]}  Ne7 {[%clk 0:01:32]} 28. Kg3 {[%clk 0:01:51]}  b6 {[%clk 0:01:25]} 29. Re1 {[%clk 0:01:49]}  Kf7 {[%clk 0:01:24]} 30. h4 {[%clk 0:01:45]}  Ng6 {[%clk 0:01:22]} 31. hxg5 {[%clk 0:01:45]}  hxg5 {[%clk 0:01:21]} 32. Rh1 {[%clk 0:01:45]}  Nf8 {[%clk 0:00:19]} 33. Rh5 {[%clk 0:01:42]}  Kf6 {[%clk 0:00:16]} 34. Rh6+ {[%clk 0:01:38]}  Kg7 {[%clk 0:00:15]} 35. Rh5 {[%clk 0:01:38]}  Kg6 {[%clk 0:00:15]} 36. Be2 {[%clk 0:01:38]}  Rf6 {[%clk 0:00:14]} 37. Bd3+ {[%clk 0:01:37]}  Kg7 {[%clk 0:00:13]} 38. Rxg5+ {[%clk 0:01:37]}  Kf7 {[%clk 0:00:13]} 39. Rh5 {[%clk 0:01:34]}  Ke7 {[%clk 0:00:11]} 40. g5 {[%clk 0:01:34]}  Rf7 {[%clk 0:00:11]} 41. Kg4 {[%clk 0:01:29]}  Rg7 {[%clk 0:00:12]} 42. Rh6 {[%clk 0:01:27]}  a5 {[%clk 0:00:11]} 43. b3 {[%clk 0:01:26]}  Nd7 {[%clk 0:00:10]} 44. Rh7 {[%clk 0:01:24]}  Nf8 {[%clk 0:00:11]} 45. Rxg7+ {[%clk 0:01:24]} 1-0


[Site "https://www.chess.com"]

[Event "Titled Tuesday Blitz November 01 Late 2022"]
[White "Milikow, Yoav"]
[Black "Khripachenko, Alexander"]
[WhiteFideId "2822237"]
[BlackFideId "54184975"]
[WhiteElo "2341"]
[BlackElo "2201"]
[Result "1-0"]
[Round "04"]
[TimeControl "180+1"]
[Date "2022.11.01"]
[WhiteClock "0:00:09"]
[BlackClock "0:00:01"]

1. d4 {[%clk 0:03:00]}  d5 {[%clk 0:02:59]} 2. c4 {[%clk 0:02:55]}  e6 {[%clk 0:02:59]} 3. Nc3 {[%clk 0:02:55]}  Be7 {[%clk 0:02:58]} 4. cxd5 {[%clk 0:02:52]}  exd5 {[%clk 0:02:59]} 5. Bf4 {[%clk 0:02:52]}  c6 {[%clk 0:02:59]} 6. e3 {[%clk 0:02:52]}  Bf5 {[%clk 0:02:59]} 7. Nge2 {[%clk 0:02:52]}  Nd7 {[%clk 0:02:59]} 8. Ng3 {[%clk 0:02:53]}  Be6 {[%clk 0:03:00]} 9. h4 {[%clk 0:02:44]}  Ngf6 {[%clk 0:02:56]} 10. h5 {[%clk 0:02:42]}  Qb6 {[%clk 0:02:47]} 11. Rb1 {[%clk 0:02:39]}  h6 {[%clk 0:02:33]} 12. Bd3 {[%clk 0:02:37]}  O-O {[%clk 0:02:13]} 13. Nf5 {[%clk 0:02:24]}  Bxf5 {[%clk 0:02:13]} 14. Bxf5 {[%clk 0:02:25]}  Rfe8 {[%clk 0:02:13]} 15. Kf1 {[%clk 0:02:18]}  Nf8 {[%clk 0:02:05]} 16. Bd3 {[%clk 0:01:52]}  c5 {[%clk 0:02:04]} 17. dxc5 {[%clk 0:01:42]}  Qxc5 {[%clk 0:02:03]} 18. Rc1 {[%clk 0:01:39]}  Qa5 {[%clk 0:02:03]} 19. Qa4 {[%clk 0:01:31]}  Qb6 {[%clk 0:01:56]} 20. Qb5 {[%clk 0:01:27]}  Qe6 {[%clk 0:01:37]} 21. Qxb7 {[%clk 0:01:18]}  Bd6 {[%clk 0:01:36]} 22. Bxd6 {[%clk 0:01:09]}  Qxd6 {[%clk 0:01:37]} 23. Nb5 {[%clk 0:01:09]}  Qb4 {[%clk 0:01:36]} 24. Qa6 {[%clk 0:00:44]}  Rab8 {[%clk 0:01:22]} 25. Rc2 {[%clk 0:00:39]}  Rb6 {[%clk 0:01:09]} 26. Qxa7 {[%clk 0:00:28]}  Rxb5 {[%clk 0:01:09]} 27. Bxb5 {[%clk 0:00:25]}  Qxb5+ {[%clk 0:01:10]} 28. Kg1 {[%clk 0:00:25]}  Qd3 {[%clk 0:01:10]} 29. Rc1 {[%clk 0:00:25]}  Qd2 {[%clk 0:01:09]} 30. Qc5 {[%clk 0:00:24]}  Qxb2 {[%clk 0:01:07]} 31. Qc2 {[%clk 0:00:24]}  Qa3 {[%clk 0:01:02]} 32. Rh4 {[%clk 0:00:24]}  Ra8 {[%clk 0:01:01]} 33. Ra1 {[%clk 0:00:23]}  Ne6 {[%clk 0:01:00]} 34. Qb1 {[%clk 0:00:20]}  Ne4 {[%clk 0:00:59]} 35. Qc2 {[%clk 0:00:19]}  Ra4 {[%clk 0:00:50]} 36. Rd1 {[%clk 0:00:16]}  N6c5 {[%clk 0:00:43]} 37. Rxd5 {[%clk 0:00:15]}  Rb4 {[%clk 0:00:09]} 38. Kh2 {[%clk 0:00:12]}  Rb2 {[%clk 0:00:06]} 39. Qc4 {[%clk 0:00:12]}  Qa8 {[%clk 0:00:04]} 40. Rxe4 {[%clk 0:00:11]}  Nxe4 {[%clk 0:00:03]} 41. Qxe4 {[%clk 0:00:12]}  Rxf2 {[%clk 0:00:03]} 42. Qd3 {[%clk 0:00:10]}  Qxa2 {[%clk 0:00:01]} 43. Rd8# {[%clk 0:00:09]} 1-0


[Site "https://www.chess.com"]

[Event "Titled Tuesday Blitz November 01 Late 2022"]
[White "Milosevic, Milos"]
[Black "Thomforde-Toates, Noah"]
[WhiteFideId "964875"]
[BlackFideId "30951992"]
[WhiteElo "2321"]
[BlackElo "2612"]
[Result "0-1"]
[Round "04"]
[TimeControl "180+1"]
[Date "2022.11.02"]
[WhiteClock "0:01:53"]
[BlackClock "0:01:48"]

1. e4 {[%clk 0:02:57]}  c5 {[%clk 0:02:59]} 2. Nf3 {[%clk 0:02:57]}  g6 {[%clk 0:02:59]} 3. d4 {[%clk 0:02:56]}  cxd4 {[%clk 0:02:59]} 4. Nxd4 {[%clk 0:02:57]}  Bg7 {[%clk 0:02:59]} 5. Nc3 {[%clk 0:02:57]}  Nc6 {[%clk 0:02:59]} 6. Be3 {[%clk 0:02:58]}  Nf6 {[%clk 0:02:58]} 7. Bc4 {[%clk 0:02:53]}  O-O {[%clk 0:02:56]} 8. Bb3 {[%clk 0:02:53]}  a5 {[%clk 0:02:53]} 9. O-O {[%clk 0:02:47]}  d6 {[%clk 0:02:50]} 10. f3 {[%clk 0:02:44]}  Bd7 {[%clk 0:02:46]} 11. Qe2 {[%clk 0:02:40]}  Nxe4 {[%clk 0:02:13]} 12. Nxc6 {[%clk 0:02:11]}  Nxc3 {[%clk 0:02:12]} 13. Nxe7+ {[%clk 0:02:10]}  Qxe7 {[%clk 0:02:10]} 14. bxc3 {[%clk 0:02:08]}  Rfe8 {[%clk 0:02:10]} 15. Rae1 {[%clk 0:02:00]}  Bxc3 {[%clk 0:02:05]} 16. Qc4 {[%clk 0:01:53]}  Bxe1 {[%clk 0:02:02]} 17. Rxe1 {[%clk 0:01:53]}  a4 {[%clk 0:01:48]} 0-1


[Site "https://www.chess.com"]

[Event "Titled Tuesday Blitz November 01 Late 2022"]
[White "Mladenovic, Stefan"]
[Black "Daeschler, Florian"]
[WhiteFideId "942227"]
[BlackFideId "20678193"]
[WhiteElo "2337"]
[BlackElo "2187"]
[Result "1-0"]
[Round "04"]
[TimeControl "180+1"]
[Date "2022.11.02"]
[WhiteClock "0:00:06"]
[BlackClock "0:00:18"]

1. d4 {[%clk 0:03:00]}  f5 {[%clk 0:02:58]} 2. Nc3 {[%clk 0:03:00]}  d5 {[%clk 0:02:54]} 3. Bg5 {[%clk 0:02:56]}  c6 {[%clk 0:02:51]} 4. e3 {[%clk 0:02:55]}  Nd7 {[%clk 0:02:45]} 5. Bd3 {[%clk 0:02:55]}  Ndf6 {[%clk 0:02:45]} 6. h3 {[%clk 0:02:53]}  Qa5 {[%clk 0:02:39]} 7. Qf3 {[%clk 0:02:53]}  e6 {[%clk 0:02:38]} 8. Ne2 {[%clk 0:02:52]}  Ne4 {[%clk 0:02:28]} 9. Bf4 {[%clk 0:02:49]}  Bb4 {[%clk 0:02:22]} 10. Bxe4 {[%clk 0:02:43]}  dxe4 {[%clk 0:02:20]} 11. Qg3 {[%clk 0:02:41]}  Kf7 {[%clk 0:02:08]} 12. Be5 {[%clk 0:02:41]}  Nf6 {[%clk 0:02:08]} 13. O-O {[%clk 0:02:39]}  Be7 {[%clk 0:02:02]} 14. f3 {[%clk 0:02:36]}  exf3 {[%clk 0:01:58]} 15. Qxf3 {[%clk 0:02:32]}  Rf8 {[%clk 0:01:52]} 16. e4 {[%clk 0:02:28]}  g6 {[%clk 0:01:52]} 17. exf5 {[%clk 0:02:28]}  exf5 {[%clk 0:01:53]} 18. Nf4 {[%clk 0:02:25]}  Bd7 {[%clk 0:01:42]} 19. Rae1 {[%clk 0:02:25]}  Rae8 {[%clk 0:01:41]} 20. d5 {[%clk 0:02:20]}  cxd5 {[%clk 0:01:37]} 21. Nfxd5 {[%clk 0:02:17]}  Bc6 {[%clk 0:01:32]} 22. Bxf6 {[%clk 0:02:16]}  Bxf6 {[%clk 0:01:31]} 23. Rxe8 {[%clk 0:01:48]}  Rxe8 {[%clk 0:01:32]} 24. b4 {[%clk 0:01:36]}  Qd8 {[%clk 0:01:27]} 25. b5 {[%clk 0:01:30]}  Bxc3 {[%clk 0:01:21]} 26. bxc6 {[%clk 0:01:27]}  Bd4+ {[%clk 0:01:21]} 27. Kh1 {[%clk 0:01:27]}  bxc6 {[%clk 0:01:20]} 28. Nf4 {[%clk 0:01:26]}  Qd6 {[%clk 0:01:16]} 29. Rd1 {[%clk 0:01:24]}  Qf6 {[%clk 0:01:08]} 30. c3 {[%clk 0:01:18]}  Be5 {[%clk 0:01:04]} 31. Rd7+ {[%clk 0:01:17]}  Re7 {[%clk 0:01:04]} 32. Rxe7+ {[%clk 0:01:17]}  Kxe7 {[%clk 0:01:05]} 33. Nd3 {[%clk 0:01:14]}  Bxc3 {[%clk 0:01:01]} 34. Qe3+ {[%clk 0:01:15]}  Kf8 {[%clk 0:00:57]} 35. Qxa7 {[%clk 0:01:14]}  Qe7 {[%clk 0:00:55]} 36. Qa8+ {[%clk 0:01:11]}  Kg7 {[%clk 0:00:46]} 37. Qxc6 {[%clk 0:01:11]}  Bf6 {[%clk 0:00:47]} 38. a4 {[%clk 0:01:08]}  Qa3 {[%clk 0:00:46]} 39. Qb5 {[%clk 0:01:01]}  Be7 {[%clk 0:00:41]} 40. Qe5+ {[%clk 0:00:56]}  Bf6 {[%clk 0:00:40]} 41. Qc7+ {[%clk 0:00:51]}  Kg8 {[%clk 0:00:37]} 42. Qc4+ {[%clk 0:00:47]}  Kg7 {[%clk 0:00:37]} 43. Qc7+ {[%clk 0:00:33]}  Kg8 {[%clk 0:00:36]} 44. Qd7 {[%clk 0:00:16]}  Be7 {[%clk 0:00:33]} 45. Qe6+ {[%clk 0:00:12]}  Kf8 {[%clk 0:00:29]} 46. Ne5 {[%clk 0:00:11]}  Ke8 {[%clk 0:00:18]} 47. Qf7+ {[%clk 0:00:06]}  Kd8 {[%clk 0:00:17]} 48. Qd5+ {[%clk 0:00:06]}  Ke8 {[%clk 0:00:17]} 49. Qf7+ {[%clk 0:00:05]}  Kd8 {[%clk 0:00:18]} 50. Nc6+ {[%clk 0:00:05]}  Kc7 {[%clk 0:00:17]} 51. Qxe7+ {[%clk 0:00:06]}  Kxc6 {[%clk 0:00:18]} 52. Qxa3 {[%clk 0:00:06]}  Kb6 {[%clk 0:00:18]} 53. Qb4+ {[%clk 0:00:06]} 1-0


[Site "https://www.chess.com"]

[Event "Titled Tuesday Blitz November 01 Late 2022"]
[White "O`Gorman, Tom"]
[Black "Muhammad, Shahzeb"]
[WhiteFideId "2508249"]
[BlackFideId "7804806"]
[WhiteElo "2271"]
[BlackElo "2410"]
[Result "1-0"]
[Round "04"]
[TimeControl "180+1"]
[Date "2022.11.02"]
[WhiteClock "0:00:31"]
[BlackClock "0:00:02"]

1. e4 {[%clk 0:02:58]}  d5 {[%clk 0:02:57]} 2. exd5 {[%clk 0:02:58]}  Nf6 {[%clk 0:02:58]} 3. d4 {[%clk 0:02:56]}  Nxd5 {[%clk 0:02:58]} 4. c4 {[%clk 0:02:55]}  Nb6 {[%clk 0:02:59]} 5. Nf3 {[%clk 0:02:55]}  g6 {[%clk 0:02:59]} 6. Be2 {[%clk 0:02:53]}  Bg7 {[%clk 0:02:59]} 7. h3 {[%clk 0:02:53]}  O-O {[%clk 0:03:00]} 8. O-O {[%clk 0:02:51]}  Nc6 {[%clk 0:02:59]} 9. Be3 {[%clk 0:02:49]}  e5 {[%clk 0:02:59]} 10. d5 {[%clk 0:02:49]}  Ne7 {[%clk 0:02:59]} 11. a4 {[%clk 0:02:44]}  a5 {[%clk 0:02:52]} 12. Nc3 {[%clk 0:02:40]}  Nf5 {[%clk 0:02:52]} 13. Bg5 {[%clk 0:02:37]}  Qe8 {[%clk 0:02:41]} 14. c5 {[%clk 0:02:31]}  e4 {[%clk 0:02:13]} 15. cxb6 {[%clk 0:02:18]}  exf3 {[%clk 0:02:13]} 16. Bxf3 {[%clk 0:02:19]}  cxb6 {[%clk 0:02:11]} 17. Ne4 {[%clk 0:02:00]}  f6 {[%clk 0:02:01]} 18. Bd2 {[%clk 0:01:57]}  Bd7 {[%clk 0:01:55]} 19. Re1 {[%clk 0:01:55]}  Qf7 {[%clk 0:01:53]} 20. Bc3 {[%clk 0:01:49]}  Rfe8 {[%clk 0:01:46]} 21. Qd3 {[%clk 0:01:38]}  Qf8 {[%clk 0:01:39]} 22. b3 {[%clk 0:01:28]}  Nd6 {[%clk 0:01:35]} 23. Nd2 {[%clk 0:01:23]}  Bf5 {[%clk 0:01:28]} 24. Qd4 {[%clk 0:01:22]}  b5 {[%clk 0:01:09]} 25. Bb2 {[%clk 0:01:09]}  bxa4 {[%clk 0:01:02]} 26. bxa4 {[%clk 0:01:08]}  Rxe1+ {[%clk 0:00:59]} 27. Rxe1 {[%clk 0:01:06]}  Re8 {[%clk 0:01:00]} 28. Rc1 {[%clk 0:00:58]}  Qe7 {[%clk 0:00:50]} 29. Ba3 {[%clk 0:00:57]}  Qd8 {[%clk 0:00:46]} 30. Qc5 {[%clk 0:00:52]}  Bf8 {[%clk 0:00:40]} 31. Qc7 {[%clk 0:00:48]}  Qxc7 {[%clk 0:00:23]} 32. Rxc7 {[%clk 0:00:47]}  Nb5 {[%clk 0:00:22]} 33. axb5 {[%clk 0:00:40]}  Bxa3 {[%clk 0:00:21]} 34. Nc4 {[%clk 0:00:39]}  Bb4 {[%clk 0:00:16]} 35. d6 {[%clk 0:00:38]}  Re1+ {[%clk 0:00:13]} 36. Kh2 {[%clk 0:00:37]}  Rc1 {[%clk 0:00:08]} 37. d7 {[%clk 0:00:35]}  Bxd7 {[%clk 0:00:07]} 38. Rxd7 {[%clk 0:00:35]}  Rc3 {[%clk 0:00:06]} 39. Bd5+ {[%clk 0:00:35]}  Kf8 {[%clk 0:00:05]} 40. Rxb7 {[%clk 0:00:33]}  a4 {[%clk 0:00:04]} 41. b6 {[%clk 0:00:31]}  a3 {[%clk 0:00:05]} 42. Rf7+ {[%clk 0:00:31]}  Ke8 {[%clk 0:00:05]} 43. Ra7 {[%clk 0:00:32]}  Bc5 {[%clk 0:00:03]} 44. Ra8+ {[%clk 0:00:30]}  Ke7 {[%clk 0:00:02]} 45. b7 {[%clk 0:00:31]}  Bd6+ {[%clk 0:00:02]} 46. Nxd6 {[%clk 0:00:31]}  Kxd6 {[%clk 0:00:02]} 1-0


[Site "https://www.chess.com"]

[Event "Titled Tuesday Blitz November 01 Late 2022"]
[White "Olenik Campa, Rudi"]
[Black "Goltseva, Ekaterina"]
[WhiteFideId "14633264"]
[BlackFideId "24173770"]
[WhiteElo "2051"]
[BlackElo "2200"]
[Result "1/2-1/2"]
[Round "04"]
[TimeControl "180+1"]
[Date "2022.11.02"]
[WhiteClock "0:00:15"]
[BlackClock "0:00:03"]

1. e4 {[%clk 0:02:59]}  e5 {[%clk 0:02:13]} 2. Nf3 {[%clk 0:02:58]}  Nf6 {[%clk 0:02:14]} 3. Nxe5 {[%clk 0:02:57]}  Nxe4 {[%clk 0:02:14]} 4. Nf3 {[%clk 0:02:58]}  d5 {[%clk 0:02:12]} 5. d4 {[%clk 0:02:57]}  Be7 {[%clk 0:02:12]} 6. Bd3 {[%clk 0:02:57]}  O-O {[%clk 0:02:11]} 7. O-O {[%clk 0:02:58]}  Bg4 {[%clk 0:02:11]} 8. h3 {[%clk 0:02:57]}  Bh5 {[%clk 0:02:11]} 9. c4 {[%clk 0:02:57]}  c6 {[%clk 0:02:10]} 10. Nc3 {[%clk 0:02:56]}  Nxc3 {[%clk 0:02:08]} 11. bxc3 {[%clk 0:02:57]}  dxc4 {[%clk 0:02:07]} 12. Bxc4 {[%clk 0:02:57]}  Nd7 {[%clk 0:02:07]} 13. Be2 {[%clk 0:02:45]}  Nb6 {[%clk 0:02:06]} 14. Ne5 {[%clk 0:02:44]}  Bxe2 {[%clk 0:02:05]} 15. Qxe2 {[%clk 0:02:45]}  Bf6 {[%clk 0:02:02]} 16. Ng4 {[%clk 0:02:36]}  Re8 {[%clk 0:02:00]} 17. Qf3 {[%clk 0:02:32]}  Bg5 {[%clk 0:01:48]} 18. Ne5 {[%clk 0:02:32]}  Rf8 {[%clk 0:01:45]} 19. Qg3 {[%clk 0:02:23]}  Bxc1 {[%clk 0:01:44]} 20. Raxc1 {[%clk 0:02:24]}  Qd5 {[%clk 0:01:43]} 21. Ng4 {[%clk 0:02:15]}  Qxa2 {[%clk 0:01:38]} 22. Nf6+ {[%clk 0:02:07]}  Kh8 {[%clk 0:01:38]} 23. Qh4 {[%clk 0:02:07]}  h6 {[%clk 0:01:38]} 24. Ng4 {[%clk 0:02:04]}  Qe6 {[%clk 0:01:38]} 25. Rfe1 {[%clk 0:02:03]}  Qg6 {[%clk 0:01:39]} 26. Ne5 {[%clk 0:02:02]}  Qg5 {[%clk 0:01:39]} 27. Qe4 {[%clk 0:01:50]}  f5 {[%clk 0:01:33]} 28. Qd3 {[%clk 0:01:42]}  Qf6 {[%clk 0:01:31]} 29. c4 {[%clk 0:01:38]}  Rad8 {[%clk 0:01:29]} 30. c5 {[%clk 0:01:37]}  Nd7 {[%clk 0:01:27]} 31. Nf3 {[%clk 0:01:28]}  Qf7 {[%clk 0:01:20]} 32. Qa3 {[%clk 0:01:26]}  a6 {[%clk 0:01:16]} 33. Rb1 {[%clk 0:01:26]}  Rb8 {[%clk 0:01:11]} 34. Rb4 {[%clk 0:01:20]}  Kh7 {[%clk 0:01:08]} 35. Reb1 {[%clk 0:01:18]}  Nf6 {[%clk 0:01:09]} 36. Ne5 {[%clk 0:01:15]}  Qc7 {[%clk 0:01:05]} 37. Qd3 {[%clk 0:01:12]}  g6 {[%clk 0:01:01]} 38. Qb3 {[%clk 0:01:07]}  Rfc8 {[%clk 0:00:21]} 39. Rxb7 {[%clk 0:01:01]}  Rxb7 {[%clk 0:00:21]} 40. Qxb7 {[%clk 0:01:02]}  a5 {[%clk 0:00:22]} 41. Qxc7+ {[%clk 0:00:56]}  Rxc7 {[%clk 0:00:22]} 42. Ra1 {[%clk 0:00:57]}  Nd7 {[%clk 0:00:19]} 43. Nc4 {[%clk 0:00:49]}  Nf8 {[%clk 0:00:17]} 44. Rxa5 {[%clk 0:00:47]}  Ne6 {[%clk 0:00:18]} 45. Ne5 {[%clk 0:00:38]}  Nxd4 {[%clk 0:00:18]} 46. Ra6 {[%clk 0:00:34]}  Kg7 {[%clk 0:00:13]} 47. g3 {[%clk 0:00:33]}  g5 {[%clk 0:00:13]} 48. Kg2 {[%clk 0:00:32]}  Kf6 {[%clk 0:00:13]} 49. f4 {[%clk 0:00:32]}  Ke6 {[%clk 0:00:09]} 50. Ra8 {[%clk 0:00:30]}  Kd5 {[%clk 0:00:08]} 51. Rh8 {[%clk 0:00:22]}  Kxc5 {[%clk 0:00:05]} 52. Rxh6 {[%clk 0:00:22]}  gxf4 {[%clk 0:00:06]} 53. gxf4 {[%clk 0:00:22]}  Kd5 {[%clk 0:00:04]} 54. h4 {[%clk 0:00:19]}  Rg7+ {[%clk 0:00:04]} 55. Kf2 {[%clk 0:00:18]}  c5 {[%clk 0:00:05]} 56. Rh8 {[%clk 0:00:18]}  Ne6 {[%clk 0:00:05]} 57. Rc8 {[%clk 0:00:17]}  Nxf4 {[%clk 0:00:04]} 58. Nf3 {[%clk 0:00:17]}  Ne6 {[%clk 0:00:04]} 59. h5 {[%clk 0:00:16]}  Rh7 {[%clk 0:00:05]} 60. Ke3 {[%clk 0:00:12]}  Rxh5 {[%clk 0:00:05]} 61. Ra8 {[%clk 0:00:12]}  f4+ {[%clk 0:00:05]} 62. Kf2 {[%clk 0:00:12]}  Rh7 {[%clk 0:00:05]} 63. Ra1 {[%clk 0:00:12]}  c4 {[%clk 0:00:05]} 64. Rd1+ {[%clk 0:00:12]}  Kc5 {[%clk 0:00:06]} 65. Ne5 {[%clk 0:00:13]}  Rc7 {[%clk 0:00:06]} 66. Kf3 {[%clk 0:00:12]}  Kb4 {[%clk 0:00:06]} 67. Rb1+ {[%clk 0:00:12]}  Ka3 {[%clk 0:00:07]} 68. Rc1 {[%clk 0:00:13]}  c3 {[%clk 0:00:07]} 69. Ke4 {[%clk 0:00:13]}  Kb2 {[%clk 0:00:07]} 70. Nd3+ {[%clk 0:00:13]}  Kb3 {[%clk 0:00:07]} 71. Kd5 {[%clk 0:00:13]}  Ng5 {[%clk 0:00:06]} 72. Kd4 {[%clk 0:00:14]}  f3 {[%clk 0:00:06]} 73. Nc5+ {[%clk 0:00:13]}  Kb4 {[%clk 0:00:04]} 74. Nd3+ {[%clk 0:00:13]}  Kb3 {[%clk 0:00:04]} 75. Nc5+ {[%clk 0:00:14]}  Kb2 {[%clk 0:00:05]} 76. Nd3+ {[%clk 0:00:15]}  Kb3 {[%clk 0:00:03]} 1/2-1/2


[Site "https://www.chess.com"]